﻿Department family,Entity,Date,Expense type,Expense area,Supplier,Transaction number,Amount,Description,Supplier Postcode
Pmu,Pmu,13/01/2023,Drugs,Pmu,Active Pharma Supplies Ltd,4774,"57,600.00 ",Pharmaceutical Purchase,PR25 2ZJ
Pmu,Pmu,06/01/2023,Drugs,Pmu,Alliance Healthcare Distribution Ltd,F2AB52458,"46,947.60 ",Pharmaceutical Purchase,KT9 1SN
Balance Sheet,L2 Current Assets,06/01/2023,Finished Processed Goods,Stock & Work In Progress,Alliance Healthcare Distribution Ltd,F2C951230,"54,207.84 ",Pharmaceutical Purchase,KT9 1SN
Balance Sheet,L2 Current Assets,13/01/2023,Finished Processed Goods,Stock & Work In Progress,Alliance Healthcare Distribution Ltd,F2CE53568,"41,408.16 ",Pharmaceutical Purchase,KT9 1SN
Balance Sheet,L2 Current Assets,27/01/2023,Finished Processed Goods,Stock & Work In Progress,Alliance Healthcare Distribution Ltd,F2CT54759,"53,967.84 ",Pharmaceutical Purchase,KT9 1SN
Balance Sheet,L2 Current Assets,06/01/2023,Finished Processed Goods,Stock & Work In Progress,Alloga Uk Ltd,SIN103654837,"72,000.00 ",Pharmaceutical Purchase,DE55 2FH
Balance Sheet,L2 Current Assets,13/01/2023,Finished Processed Goods,Stock & Work In Progress,Alloga Uk Ltd,SIN103661152,"47,646.00 ",Pharmaceutical Purchase,DE55 2FH
Balance Sheet,L2 Long Term Creditors,13/01/2023,Lease Liabilities under IFRS 16 > 1 year,Finance Leases,Amas Ltd,00310-202200164,"-418,256.71 ",Unit 5  Broad Street Plaza Rental Income 24/08/2021-24/12/2022,E14 5WQ
Balance Sheet,L2 Long Term Creditors,13/01/2023,Lease Liabilities under IFRS 16 > 1 year,Finance Leases,Amas Ltd,00310-202200165,"439,383.70 ",Unit 5  Broad Street Plaza Rental Income 24/08/2021-24/12/2022,E14 5WQ
Corporate Services,Service Performance,06/01/2023,Contract : Other External,Properties,Amas Ltd,00310-202200174,"3,270.00",Unit 5  Broad Street Plaza Service Charge on Account 25/12/2022-24/03/2023,E14 5WQ
Balance Sheet,L2 Long Term Creditors,06/01/2023,Lease Liabilities under IFRS 16 > 1 year,Finance Leases,Amas Ltd,00310-202200174,"67,875.00",Unit 5  Broad Street Plaza Rental Income 25/12/2022-24/03/2023,E14 5WQ
Balance Sheet,L2 Long Term Creditors,06/01/2023,Lease Liabilities under IFRS 16 > 1 year,Finance Leases,Assura Medical Centres Ltd,LINV52438,"29,100.00 ",25/12/2022 T005-T003 Rent Todmorden Health Centre,WA4 6HL
CHS Estates,L2 Estates,13/01/2023,Contract : Other External,Medical Physics,B Braun Sterilog (Yorkshire) Ltd,328746860,"170,911.13 ",Decontamination Services for Surgical & Podiatry,S35 2PW
Balance Sheet,L2 Current Assets,06/01/2023,Finished Processed Goods,Stock & Work In Progress,Bayer Plc,824C460220,"27,373.68 ",Pharmaceutical Purchase,RG2 6AD
Balance Sheet,L2 Current Assets,11/01/2023,Finished Processed Goods,Stock & Work In Progress,Bayer Plc,824C460878,"27,373.68 ",Pharmaceutical Purchase,RG2 6AD
Balance Sheet,L2 Current Assets,18/01/2023,Finished Processed Goods,Stock & Work In Progress,Bayer Plc,824C463697,"27,373.68 ",Pharmaceutical Purchase,RG2 6AD
Balance Sheet,L2 Current Assets,20/01/2023,Finished Processed Goods,Stock & Work In Progress,Bayer Plc,824C463985,"125,462.71 ",Pharmaceutical Purchase,RG2 6AD
Balance Sheet,L2 Current Assets,20/01/2023,Finished Processed Goods,Stock & Work In Progress,Bayer Plc,824C464892,"27,373.68 ",Pharmaceutical Purchase,RG2 6AD
Balance Sheet,Fixed Assets,06/01/2023,Additions - Assets Under Construction,Capital (Fss),Becton Dickinson Dispensing Uk Ltd,CI021028,"98,490.00 ",PHARMACY ROBOT SYSTEM,RG41 5TS
Families & Specialist Services,Pathology,20/01/2023,Laboratory Test Kits,Microbiology,Becton Dickinson UK Ltd,230019734,"39,449.48 ",BD Managed Service Contract (non-CoVID) to cover the cost between Mar 2022 and Feb 2023.,RG41 5TS
Surgery & Anaesthetics,Surgical Divisional Support,20/01/2023,Contractual Clinical Services,Independent Sector,Bmi Healthcare Ltd,S5712OCT22,"90,460.94 ",Provision of Elective Activity on behalf of CHFT,SK3 0XN
Recharges,Recharges,20/01/2023,Healthcare From Foundation Trusts,Recharges,Bradford Teaching Hospitals NHS Foundation Trust,322792,"118,442.59 ",Various services provided by agreement as per West Yorkshire Association of Acute Trusts agreed methodology,WF3 1WE
Balance Sheet,L2 Current Assets,06/01/2023,Finished Processed Goods,Stock & Work In Progress,Bristol Myers Squibb Pharmaceuticals Ltd,100700582,"63,519.66 ",Pharmaceutical Purchase,CH4 9QW
Balance Sheet,L2 Current Assets,13/01/2023,Finished Processed Goods,Stock & Work In Progress,Bristol Myers Squibb Pharmaceuticals Ltd,100701283,"50,770.20 ",Pharmaceutical Purchase,CH4 9QW
CHS Estates,L2 Estates,11/01/2023,Rent,Estates Properties,BW SIPP Trustees Ltd,INV-0971,"1,250.00",roof repairs for Elland (loan store and THIS) site £5 000 pa paid in quarters at £1 250 ,HX2 6BW
CHS Balance Sheet,Long Term Creditors,11/01/2023,Lease Liabilities under IFRS 16 > 1 year,Finance Leases,BW SIPP Trustees Ltd,INV-0971,"34,625.00",rent for Elland site (Loan store and THIS) 29 Sep - 24 Dec 2022,HX2 6BW
CHS Estates,L2 Estates,11/01/2023,Rent,Estates Properties,BW SIPP Trustees Ltd,INV-1044,"1,250.00",roof repairs for Elland (loan store and THIS) site £5 000 pa paid in quarters at £1 250 ,HX2 6BW
CHS Balance Sheet,Long Term Creditors,11/01/2023,Lease Liabilities under IFRS 16 > 1 year,Finance Leases,BW SIPP Trustees Ltd,INV-1044,"34,625.00",rent for Elland site (Loan store and THIS) £138 500 pa paid in quarters at £34 625,HX2 6BW
Surgery & Anaesthetics,Surgical Divisional Support,27/01/2023,Healthcare From Commercial Sector,Elective Recovery,Calderdale And Huddersfield Orthopaedic Partnership Llp,INV-0063,"75,000.00 ",Provision of Orthopaedic and/or Specialty Healthcare,LS8 2JH
Corporate Services,Service Performance,20/01/2023,Contract : Other External,Pfi,Calderdale Hospital Spc Ltd,CASI29,"3,048,766.66 ",PFI contract monthly payment,M20 2YY
Corporate Services,Service Performance,11/01/2023,External Contracts : Other Hotel Services,Pfi,Calderdale Hospital Spc Ltd,CASI30,"40,652.90 ",Additional variations,M20 2YY
Corporate Services,Service Performance,11/01/2023,Minor Works,Pfi,Calderdale Hospital Spc Ltd,CASI33,"127,639.79 ",Calderdale LED Project,M20 2YY
Corporate Services,Service Performance,11/01/2023,Minor Works,Pfi,Calderdale Hospital Spc Ltd,CASI35,"413,048.52 ",New Works Instructions,M20 2YY
Corporate Services,Service Performance,01/02/2023,Rates,Properties,Calderdale Metropolitan Borough Council,25202291017616,"73,387.00 ",Business rates for Calderdale Royal Hospital,HX1 1TP
Corporate Services,Corporate Services,05/01/2023,Professional Fees,Corporate Services,Care Quality Commission,43126754,"30,805.40 ",Annual Fee in 10 installments 30 805.40 each,WF3 1WE
Balance Sheet,Fixed Assets,27/01/2023,Additions - Assets Under Construction,Capital (His),Cerner Ltd,102169902,"90,069.60 ",Cerner - CCN050 Cerner Millennium / EMIS Ascribe Integration. Professional Services charge Total Charge £150 116 payable in two instalments 50% upon execution and 50% on go live.,W2 1AF
Health Informatics,Service Delivery,18/01/2023,Computer Hardware Purchases,Service Delivery,Cisilion Ltd,INVUK0016503,"51,024.71 ",SMART MAINTENANCE - TO COVER MERAKI APS - 3 YEARS,KT22 9UT
Balance Sheet,Fixed Assets,11/01/2023,Additions - Assets Under Construction,Capital (Estates),Clifford Cooper & Sons Ltd,62455,"167,461.86 ",HRI - SUPPLY AND INSTALLATION OF A CONDENSATE RECOVERY SCHEME AS PER YOUR TENDER RETURN - DATED 04/03/22. ,CM20 9GY
Balance Sheet,L2 Current Assets,06/01/2023,Finished Processed Goods,Stock & Work In Progress,Csl Behring Uk Ltd,994052111,"26,880.00 ",Pharmaceutical Purchase,RH16 1AH
CHS Estates,L2 Estates,25/01/2023,Electricity,Estates Operations,EDF Energy Customers Ltd,000014249869,"276,419.89 ",Mains Gas CRH,W1T 4EZ
Corporate Services,Finance,11/01/2023,External Consultancy Fees,Finance,Ernst & Young Llp,GB01G000348427,"36,379.20 ",ASSISTANCE WITH INPUT TAX CLAIM ,SE1 7EU
Balance Sheet,Fixed Assets,18/01/2023,Additions - Assets Under Construction,Capital (Surgical),Haag-Streit Uk Ltd,SI30039711,"79,809.00",Haag-Streit BP900 LED Slit Lamp  RM02  IM600 (BP)  HSm600 (Large)  Silver Headrest (With Lower Part)  Table Fittings & Fixed Background - 5602743LF,CM20 2TT
Balance Sheet,Fixed Assets,18/01/2023,Additions - Assets Under Construction,Capital (Surgical),Haag-Streit Uk Ltd,SI30039711,"4,050.00","21.5"" All-In-One PC - 1491191",CM20 2TT
Balance Sheet,Fixed Assets,18/01/2023,Additions - Assets Under Construction,Capital (Surgical),Haag-Streit Uk Ltd,SI30039711,144.75,Mini USB Keyboard and Mouse - 1480036,CM20 2TT
Balance Sheet,Fixed Assets,18/01/2023,Additions - Assets Under Construction,Capital (Surgical),Haag-Streit Uk Ltd,SI30039711,"1,245.00",Isolating Transformer - 1450153,CM20 2TT
Medical Division,Emergency Medicine,25/01/2023,B5 Agency Nursing,A&E Nursing,Icare24 Ltd,45715,"5,125.58 ",B5 Agency Nursing,B16 8QG
Medical Division,Medical Specialities,25/01/2023,B5 Agency Nursing,Cardiology,Icare24 Ltd,45715,544.40 ,B5 Agency Nursing,B16 8QG
Medical Division,Medical Specialities,25/01/2023,B5 Agency Nursing,Gastroenterology,Icare24 Ltd,45715,"1,633.20 ",B5 Agency Nursing,B16 8QG
Medical Division,Acute Medical,25/01/2023,B5 Agency Nursing,General Medicine,Icare24 Ltd,45715,"3,299.91 ",B5 Agency Nursing,B16 8QG
Medical Division,Acute Medical,25/01/2023,B5 Agency Nursing,Geriatric Medicine,Icare24 Ltd,45715,"5,634.82 ",B5 Agency Nursing,B16 8QG
Families & Specialist Services,Womens,25/01/2023,B5 Agency Nursing,Gynaecology,Icare24 Ltd,45715,567.99 ,B5 Agency Nursing,B16 8QG
Medical Division,Integrated Medical Specialities,25/01/2023,B5 Agency Nursing,Ims Stroke / Rehabilitation,Icare24 Ltd,45715,"3,421.03 ",B5 Agency Nursing,B16 8QG
Medical Division,Integrated Medical Specialities,25/01/2023,B5 Agency Nursing,Medical Oncology,Icare24 Ltd,45715,599.88 ,B5 Agency Nursing,B16 8QG
Surgery & Anaesthetics,Operating Services,25/01/2023,B5 Agency Nursing,Operating Services,Icare24 Ltd,45715,"2,151.39 ",B5 Agency Nursing,B16 8QG
Surgery & Anaesthetics,Orthopaedics,25/01/2023,B5 Agency Nursing,Trauma & Orthopaedics,Icare24 Ltd,45715,540.39 ,B5 Agency Nursing,B16 8QG
Medical Division,Emergency Medicine,27/01/2023,B5 Agency Nursing,A&E Nursing,Icare24 Ltd,INV43241A,"5,940.95 ",B5 Agency Nursing,B16 8QG
Corporate Services,Central Operations Team CORP,27/01/2023,B5 Agency Nursing,Central Operations Team CORP,Icare24 Ltd,INV43241A,567.41 ,B5 Agency Nursing,B16 8QG
Medical Division,Medical Specialities,27/01/2023,B5 Agency Nursing,Gastroenterology,Icare24 Ltd,INV43241A,"2,199.45 ",B5 Agency Nursing,B16 8QG
Medical Division,Acute Medical,27/01/2023,B5 Agency Nursing,General Medicine,Icare24 Ltd,INV43241A,"2,760.23 ",B5 Agency Nursing,B16 8QG
Surgery & Anaesthetics,General Surgery,27/01/2023,B5 Agency Nursing,General Surgery,Icare24 Ltd,INV43241A,600.88 ,B5 Agency Nursing,B16 8QG
Medical Division,Acute Medical,27/01/2023,B5 Agency Nursing,Geriatric Medicine,Icare24 Ltd,INV43241A,"3,945.75 ",B5 Agency Nursing,B16 8QG
Families & Specialist Services,Womens,27/01/2023,B5 Agency Nursing,Gynaecology,Icare24 Ltd,INV43241A,"1,364.84 ",B5 Agency Nursing,B16 8QG
Medical Division,Integrated Medical Specialities,27/01/2023,B5 Agency Nursing,Medical Oncology,Icare24 Ltd,INV43241A,563.88 ,B5 Agency Nursing,B16 8QG
Surgery & Anaesthetics,Operating Services,27/01/2023,B5 Agency Nursing,Operating Services,Icare24 Ltd,INV43241A,"3,504.90 ",B5 Agency Nursing,B16 8QG
Surgery & Anaesthetics,Orthopaedics,27/01/2023,B5 Agency Nursing,Trauma & Orthopaedics,Icare24 Ltd,INV43241A,449.93 ,B5 Agency Nursing,B16 8QG
Medical Division,Emergency Medicine,27/01/2023,B5 Agency Nursing,A&E Nursing,Icare24 Ltd,INV46955A,"4,458.21 ",B5 Agency Nursing,B16 8QG
Medical Division,Medical Specialities,27/01/2023,B5 Agency Nursing,Cardiology,Icare24 Ltd,INV46955A,543.84 ,B5 Agency Nursing,B16 8QG
Corporate Services,Central Operations Team CORP,27/01/2023,B5 Agency Nursing,Central Operations Team CORP,Icare24 Ltd,INV46955A,540.39 ,B5 Agency Nursing,B16 8QG
Medical Division,Medical Specialities,27/01/2023,B5 Agency Nursing,Gastroenterology,Icare24 Ltd,INV46955A,"1,683.11 ",B5 Agency Nursing,B16 8QG
Medical Division,Acute Medical,27/01/2023,B5 Agency Nursing,General Medicine,Icare24 Ltd,INV46955A,"2,802.80 ",B5 Agency Nursing,B16 8QG
Surgery & Anaesthetics,General Surgery,27/01/2023,B5 Agency Nursing,General Surgery,Icare24 Ltd,INV46955A,"1,162.31 ",B5 Agency Nursing,B16 8QG
Medical Division,Acute Medical,27/01/2023,B5 Agency Nursing,Geriatric Medicine,Icare24 Ltd,INV46955A,"2,790.83 ",B5 Agency Nursing,B16 8QG
Medical Division,Integrated Medical Specialities,27/01/2023,B5 Agency Nursing,Ims Stroke / Rehabilitation,Icare24 Ltd,INV46955A,"4,423.76 ",B5 Agency Nursing,B16 8QG
Medical Division,Integrated Medical Specialities,27/01/2023,B5 Agency Nursing,Medical Oncology,Icare24 Ltd,INV46955A,"1,022.81 ",B5 Agency Nursing,B16 8QG
Surgery & Anaesthetics,Operating Services,27/01/2023,B5 Agency Nursing,Operating Services,Icare24 Ltd,INV46955A,"1,738.24 ",B5 Agency Nursing,B16 8QG
Medical Division,Medical Specialities,27/01/2023,B5 Agency Nursing,Respiratory,Icare24 Ltd,INV46955A,599.88 ,B5 Agency Nursing,B16 8QG
Surgery & Anaesthetics,Orthopaedics,27/01/2023,B5 Agency Nursing,Trauma & Orthopaedics,Icare24 Ltd,INV46955A,"1,683.17 ",B5 Agency Nursing,B16 8QG
Medical Division,Emergency Medicine,27/01/2023,B5 Agency Nursing,A&E Nursing,Icare24 Ltd,INV48255A,"1,298.02 ",B5 Agency Nursing,B16 8QG
Corporate Services,Central Operations Team CORP,27/01/2023,B5 Agency Nursing,Central Operations Team CORP,Icare24 Ltd,INV48255A,"1,738.69 ",B5 Agency Nursing,B16 8QG
Medical Division,Medical Specialities,27/01/2023,B5 Agency Nursing,Gastroenterology,Icare24 Ltd,INV48255A,"1,675.65 ",B5 Agency Nursing,B16 8QG
Medical Division,Acute Medical,27/01/2023,B5 Agency Nursing,General Medicine,Icare24 Ltd,INV48255A,"1,655.61 ",B5 Agency Nursing,B16 8QG
Surgery & Anaesthetics,General Surgery,27/01/2023,B5 Agency Nursing,General Surgery,Icare24 Ltd,INV48255A,"1,134.82 ",B5 Agency Nursing,B16 8QG
Medical Division,Acute Medical,27/01/2023,B5 Agency Nursing,Geriatric Medicine,Icare24 Ltd,INV48255A,"5,024.73 ",B5 Agency Nursing,B16 8QG
Medical Division,Integrated Medical Specialities,27/01/2023,B5 Agency Nursing,Ims Stroke / Rehabilitation,Icare24 Ltd,INV48255A,"5,034.26 ",B5 Agency Nursing,B16 8QG
Medical Division,Integrated Medical Specialities,27/01/2023,B5 Agency Nursing,Medical Oncology,Icare24 Ltd,INV48255A,647.88 ,B5 Agency Nursing,B16 8QG
Families & Specialist Services,Womens,27/01/2023,B5 Agency Nursing,Obstetrics,Icare24 Ltd,INV48255A,"1,256.27 ",B5 Agency Nursing,B16 8QG
Surgery & Anaesthetics,Operating Services,27/01/2023,B5 Agency Nursing,Operating Services,Icare24 Ltd,INV48255A,"4,131.83 ",B5 Agency Nursing,B16 8QG
Medical Division,Medical Specialities,27/01/2023,B5 Agency Nursing,Respiratory,Icare24 Ltd,INV48255A,"1,711.65 ",B5 Agency Nursing,B16 8QG
Surgery & Anaesthetics,Orthopaedics,27/01/2023,B5 Agency Nursing,Trauma & Orthopaedics,Icare24 Ltd,INV48255A,600.88 ,B5 Agency Nursing,B16 8QG
Medical Division,Emergency Medicine,27/01/2023,B5 Agency Nursing,A&E Nursing,Icare24 Ltd,INV49579A,5693.43,B5 Agency Nursing,B16 8QG
Corporate Services,Central Operations Team CORP,27/01/2023,B5 Agency Nursing,Central Operations Team CORP,Icare24 Ltd,INV49579A,3407.27,B5 Agency Nursing,B16 8QG
Medical Division,Acute Medical,27/01/2023,B5 Agency Nursing,General Medicine,Icare24 Ltd,INV49579A,2303.49,B5 Agency Nursing,B16 8QG
Surgery & Anaesthetics,General Surgery,27/01/2023,B5 Agency Nursing,General Surgery,Icare24 Ltd,INV49579A,3488.42,B5 Agency Nursing,B16 8QG
Medical Division,Acute Medical,27/01/2023,B5 Agency Nursing,Geriatric Medicine,Icare24 Ltd,INV49579A,1671.14,B5 Agency Nursing,B16 8QG
Medical Division,Integrated Medical Specialities,27/01/2023,B5 Agency Nursing,Ims Stroke / Rehabilitation,Icare24 Ltd,INV49579A,563.42,B5 Agency Nursing,B16 8QG
Families & Specialist Services,Womens,27/01/2023,B5 Agency Nursing,Obstetrics,Icare24 Ltd,INV49579A,3194.98,B5 Agency Nursing,B16 8QG
Surgery & Anaesthetics,Operating Services,27/01/2023,B5 Agency Nursing,Operating Services,Icare24 Ltd,INV49579A,2851.11,B5 Agency Nursing,B16 8QG
Medical Division,Medical Specialities,27/01/2023,B5 Agency Nursing,Respiratory,Icare24 Ltd,INV49579A,1175.73,B5 Agency Nursing,B16 8QG
Surgery & Anaesthetics,Orthopaedics,27/01/2023,B5 Agency Nursing,Trauma & Orthopaedics,Icare24 Ltd,INV49579A,1172.78,B5 Agency Nursing,B16 8QG
Medical Division,Emergency Medicine,27/01/2023,B5 Agency Nursing,A&E Nursing,Icare24 Ltd,INV50812A,"5,072.28 ",B5 Agency Nursing,B16 8QG
Medical Division,Medical Specialities,27/01/2023,B5 Agency Nursing,Cardiology,Icare24 Ltd,INV50812A,543.84 ,B5 Agency Nursing,B16 8QG
Corporate Services,Central Operations Team CORP,27/01/2023,B5 Agency Nursing,Central Operations Team CORP,Icare24 Ltd,INV50812A,"2,889.50 ",B5 Agency Nursing,B16 8QG
Medical Division,Medical Specialities,27/01/2023,B5 Agency Nursing,Gastroenterology,Icare24 Ltd,INV50812A,548.35 ,B5 Agency Nursing,B16 8QG
Medical Division,Acute Medical,27/01/2023,B5 Agency Nursing,General Medicine,Icare24 Ltd,INV50812A,"1,238.30 ",B5 Agency Nursing,B16 8QG
Surgery & Anaesthetics,General Surgery,27/01/2023,B5 Agency Nursing,General Surgery,Icare24 Ltd,INV50812A,"5,422.18 ",B5 Agency Nursing,B16 8QG
Medical Division,Acute Medical,27/01/2023,B5 Agency Nursing,Geriatric Medicine,Icare24 Ltd,INV50812A,"3,373.14 ",B5 Agency Nursing,B16 8QG
Medical Division,Integrated Medical Specialities,27/01/2023,B5 Agency Nursing,Ims Stroke / Rehabilitation,Icare24 Ltd,INV50812A,"1,107.26 ",B5 Agency Nursing,B16 8QG
Medical Division,Integrated Medical Specialities,27/01/2023,B5 Agency Nursing,Medical Oncology,Icare24 Ltd,INV50812A,563.88 ,B5 Agency Nursing,B16 8QG
Surgery & Anaesthetics,Operating Services,27/01/2023,B5 Agency Nursing,Operating Services,Icare24 Ltd,INV50812A,"2,707.05 ",B5 Agency Nursing,B16 8QG
Medical Division,Medical Specialities,27/01/2023,B5 Agency Nursing,Respiratory,Icare24 Ltd,INV50812A,647.88 ,B5 Agency Nursing,B16 8QG
Surgery & Anaesthetics,Orthopaedics,27/01/2023,B5 Agency Nursing,Trauma & Orthopaedics,Icare24 Ltd,INV50812A,"1,711.21 ",B5 Agency Nursing,B16 8QG
Medical Division,Emergency Medicine,27/01/2023,B5 Agency Nursing,A&E Nursing,Icare24 Ltd,INV52088A,"1,915.42 ",B5 Agency Nursing,B16 8QG
Medical Division,Medical Specialities,27/01/2023,B5 Agency Nursing,Cardiology,Icare24 Ltd,INV52088A,575.85 ,B5 Agency Nursing,B16 8QG
Corporate Services,Central Operations Team CORP,27/01/2023,B5 Agency Nursing,Central Operations Team CORP,Icare24 Ltd,INV52088A,"4,395.78 ",B5 Agency Nursing,B16 8QG
Medical Division,Acute Medical,27/01/2023,B5 Agency Nursing,General Medicine,Icare24 Ltd,INV52088A,"3,375.18 ",B5 Agency Nursing,B16 8QG
Surgery & Anaesthetics,General Surgery,27/01/2023,B5 Agency Nursing,General Surgery,Icare24 Ltd,INV52088A,"3,339.50 ",B5 Agency Nursing,B16 8QG
Medical Division,Acute Medical,27/01/2023,B5 Agency Nursing,Geriatric Medicine,Icare24 Ltd,INV52088A,"2,803.26 ",B5 Agency Nursing,B16 8QG
Families & Specialist Services,Womens,27/01/2023,B5 Agency Nursing,Gynaecology,Icare24 Ltd,INV52088A,686.90 ,B5 Agency Nursing,B16 8QG
Medical Division,Integrated Medical Specialities,27/01/2023,B5 Agency Nursing,Ims Stroke / Rehabilitation,Icare24 Ltd,INV52088A,"1,096.70 ",B5 Agency Nursing,B16 8QG
Surgery & Anaesthetics,Operating Services,27/01/2023,B5 Agency Nursing,Operating Services,Icare24 Ltd,INV52088A,"2,137.14 ",B5 Agency Nursing,B16 8QG
Medical Division,Medical Specialities,27/01/2023,B5 Agency Nursing,Respiratory,Icare24 Ltd,INV52088A,563.42 ,B5 Agency Nursing,B16 8QG
Surgery & Anaesthetics,Orthopaedics,27/01/2023,B5 Agency Nursing,Trauma & Orthopaedics,Icare24 Ltd,INV52088A,"1,157.82 ",B5 Agency Nursing,B16 8QG
Medical Division,Emergency Medicine,27/01/2023,B5 Agency Nursing,A&E Nursing,Icare24 Ltd,INV54658A,"3,770.03 ",B5 Agency Nursing,B16 8QG
Medical Division,Medical Specialities,27/01/2023,B5 Agency Nursing,Cardiology,Icare24 Ltd,INV54658A,563.42 ,B5 Agency Nursing,B16 8QG
Corporate Services,Central Operations Team CORP,27/01/2023,B5 Agency Nursing,Central Operations Team CORP,Icare24 Ltd,INV54658A,"1,159.32 ",B5 Agency Nursing,B16 8QG
Medical Division,Acute Medical,27/01/2023,B5 Agency Nursing,General Medicine,Icare24 Ltd,INV54658A,"2,211.88 ",B5 Agency Nursing,B16 8QG
Medical Division,Acute Medical,27/01/2023,B5 Agency Nursing,Geriatric Medicine,Icare24 Ltd,INV54658A,"3,392.10 ",B5 Agency Nursing,B16 8QG
Medical Division,Integrated Medical Specialities,27/01/2023,B5 Agency Nursing,Ims Stroke / Rehabilitation,Icare24 Ltd,INV54658A,"3,319.14 ",B5 Agency Nursing,B16 8QG
Medical Division,Integrated Medical Specialities,27/01/2023,B5 Agency Nursing,Medical Oncology,Icare24 Ltd,INV54658A,404.93 ,B5 Agency Nursing,B16 8QG
Surgery & Anaesthetics,Operating Services,27/01/2023,B5 Agency Nursing,Operating Services,Icare24 Ltd,INV54658A,"3,474.96 ",B5 Agency Nursing,B16 8QG
Corporate Services,Quality,27/01/2023,B5 Agency Nursing,Quality,Icare24 Ltd,INV54658A,567.41 ,B5 Agency Nursing,B16 8QG
Medical Division,Medical Specialities,27/01/2023,B5 Agency Nursing,Respiratory,Icare24 Ltd,INV54658A,"1,683.11 ",B5 Agency Nursing,B16 8QG
Surgery & Anaesthetics,Orthopaedics,27/01/2023,B5 Agency Nursing,Trauma & Orthopaedics,Icare24 Ltd,INV54658A,"2,133.63 ",B5 Agency Nursing,B16 8QG
CHS Facilities,L2 Facilities,01/02/2023,Cleaning Materials,Hpv,Inivos Ltd,I000012755,"87,696.00 ",ProXcide Service Level Agreement Support package,PE30 4NG
CHS Facilities,L2 Facilities,01/02/2023,Cleaning Materials,Hpv,Inivos Ltd,I000012755,"87,696.00 ",ProXcide Service Level Agreement Support package (per system) at £3654 x 4 per annum - 5 year fixed 2/5 year ,PE30 4NG
Balance Sheet,Fixed Assets,20/01/2023,Additions - Assets Under Construction,CAPITAL (Reconfig HRI),Integrated Health Projects,23010023,"1,338,519.53 ",STAGE 3 & 4 GMP SUBMISSION FOR THE DELIVERY OF A NEW ACCIDENT AND EMERGENCY BUILD AT THE HUDDERSFIELD ROYAL INFIRMARY ,WD24 4WW
Balance Sheet,L2 Current Assets,25/01/2023,Finished Processed Goods,Stock & Work In Progress,Janssen-Cilag Ltd,930899359,"47,692.80 ",Pharmaceutical Purchase,HP12 4EG
Balance Sheet,L2 Current Assets,25/01/2023,Finished Processed Goods,Stock & Work In Progress,Janssen-Cilag Ltd,930899785,"47,692.80 ",Pharmaceutical Purchase,HP12 4EG
Balance Sheet,L2 Current Assets,25/01/2023,Finished Processed Goods,Stock & Work In Progress,Janssen-Cilag Ltd,930900460,"35,769.60 ",Pharmaceutical Purchase,HP12 4EG
Balance Sheet,L2 Current Assets,01/02/2023,Other Debtors < One Year,Other Debtors,Karl Storz Endoscopy (Uk) Ltd,6020141484,"49,837.60 ",Morcellator Quote - 5100124619HOPKINS TelescopeFiber Optic Light CableResectoscope Sheath+ Accessories,SL14TQ
Central & Technical,Tech Accounting,06/01/2023,Non Patient Care to NHS England,Tech Accounting,Kirklees Council,8607635223,"69,754.00 ",Reducing Inequalities Funding 2022/23,HD1 2NF
Families & Specialist Services,Pharmacy,13/01/2023,Healthcare From Commercial Sector,Pharm Gen,L Rowland & Company (Retail) Ltd,1800001716,"95,044.66",Rowlands Outpatient Pharmacy contract DISPENSING FEE ,WA7 3DJ
Families & Specialist Services,Pharmacy,13/01/2023,Healthcare From Commercial Sector,Pharm Gen,L Rowland & Company (Retail) Ltd,1800001716,"787,932.34",Rowlands Outpatient Pharmacy Contract. Projected medicines costs,WA7 3DJ
Families & Specialist Services,Radiology,01/02/2023,Med Surg Eqpt Hire,Ct,Medispace B.V.,20220613,"30,025.92 ",Rental of a CM050 CT scan box with Canon Prime 160 slice CT scanner plus 2 radiographers to run the service 8am-20.00pm 7 days per week,2712 PJ  The Netherlands
Pmu,Pmu,25/01/2023,Insurance Costs,Pmu,MFL Insurance Group Ltd,518860892,"32,318.03 ",MFL Insurance Renewal for Huddersfield Pharmacy Specials,M1 3DZ
Recharges,Recharges,13/01/2023,Healthcare From NHS Trusts,Recharges,Mid Yorkshire Hospitals NHS Trust,1600022162,"52,918.00 ",Various services provided by agreement as per West Yorkshire Association of Acute Trusts agreed methodology,WF1 4DG
Families & Specialist Services,Pathology,15/01/2023,Blood Products,Blood Sciences,NHS Blood And Transplant,7010722,"85,109.73 ",MONTHLY CONTRACT CHARGE BLOOD & COMPONENTS,LS15 7TW
Families & Specialist Services,Pathology,15/01/2023,Blood Products,Blood Sciences,NHS Blood And Transplant,7010723,"32,812.05 ",MONTHLY CONTRACT CHARGE BLOOD & COMPONENTS,LS15 7TW
Corporate Services,Quality,16/01/2023,Clinical Negligence,Quality,NHS Resolution,SICX411322,"791,186.30 ",Clinical Negligence provision,SW1W 9SZ
Families & Specialist Services,Womens,16/01/2023,Clinical Negligence,Womens Management,NHS Resolution,SICX411322,"857,768.00 ",Clinical Negligence provision,SW1W 9SZ
Corporate Services,Quality,16/01/2023,Insurance Costs,Quality,NHS Resolution,SICX411322,"20,850.40 ",Clinical Negligence provision,SW1W 9SZ
CHS Balance Sheet,Current Liabilities,06/01/2023,Non- NHS  Trade Creditors < One Year,Other Creditors,NHS Supply Chain,1123205453,"143,153.10 ",Goods delivered week ending 09/12/2022,DE55 4QJ
CHS Balance Sheet,Current Liabilities,06/01/2023,Non- NHS  Trade Creditors < One Year,Other Creditors,NHS Supply Chain,1123208802,"199,633.91 ",Goods delivered week ending 09/12/2022,DE55 4QJ
CHS Balance Sheet,Current Liabilities,13/01/2023,Non- NHS  Trade Creditors < One Year,Other Creditors,NHS Supply Chain,1123210336,"158,118.72 ",Goods delivered week ending 16/12/2022,DE55 4QJ
CHS Balance Sheet,Current Liabilities,13/01/2023,Non- NHS  Trade Creditors < One Year,Other Creditors,NHS Supply Chain,1123214696,"133,579.82 ",Goods delivered week ending 16/12/2022,DE55 4QJ
CHS Balance Sheet,Current Liabilities,01/02/2023,Non- NHS  Trade Creditors < One Year,Other Creditors,NHS Supply Chain,1123218369,"165,659.29 ",Goods delivered week ending 23-Dec-2022,DE55 4QJ
CHS Balance Sheet,Current Liabilities,01/02/2023,Non- NHS  Trade Creditors < One Year,Other Creditors,NHS Supply Chain,1123221197,"223,757.81 ",Goods delivered week ending 23-Dec-2022,DE55 4QJ
CHS Balance Sheet,Current Liabilities,01/02/2023,Non- NHS  Trade Creditors < One Year,Other Creditors,NHS Supply Chain,1123222117,"76,666.83 ",Goods delivered week ending 30-Dec-2022,DE55 4QJ
CHS Balance Sheet,Current Liabilities,01/02/2023,Non- NHS  Trade Creditors < One Year,Other Creditors,NHS Supply Chain,1123223793,"69,997.33 ",Goods delivered week ending 30-Dec-2022,DE55 4QJ
Corporate Services,Finance,27/01/2023,Computer Software / License  Fees,Finance,Northumbria Healthcare NHS Foundation Trust,7550002181,"18,905.50 ",Financial Software system costs,NE27 0QJ
Balance Sheet,L2 Current Assets,18/01/2023,Finished Processed Goods,Stock & Work In Progress,Novartis Pharmaceuticals Uk Ltd,92708443,"46,421.76 ",Pharmaceutical Purchase,W12 7FQ
Balance Sheet,L2 Current Assets,18/01/2023,Finished Processed Goods,Stock & Work In Progress,Novartis Pharmaceuticals Uk Ltd,92709257,"42,201.60 ",Pharmaceutical Purchase,W12 7FQ
Surgery & Anaesthetics,Surgical Divisional Support,11/01/2023,Healthcare From Commercial Sector,Support Services,Omnes Healthcare Ltd,CALOCT22,"89,983.77 ",Insouring Outpatient Capacity - ENT,SE22 8EY
Central & Technical,Tech Accounting,25/01/2023,CCG Income,Tech Accounting,Pennine Gp Alliance Ltd,INV-0752,"117,750.00 ",UECB WINTER MONIES ALLOCATION - CALDERDALE CLINICAL LEADERS VIA GP ALLIANCE - ADDITIONAL NURSING CAPACITY TO SUPPORT LTC FOLLOW UPS,HX1 4JG
Corporate Services,Service Performance,11/01/2023,Contract : Other External,Properties,Pennine Property Partnership Llp,SINV3168,"48,516.60 ",Service Charge Recharge - September 2022,WA4 6HL
Corporate Services,Service Performance,11/01/2023,Contract : Other External,Properties,Pennine Property Partnership Llp,SINV3169,"48,516.60 ",Service Charge Recharge - October 2022,WA4 6HL
Corporate Services,Service Performance,11/01/2023,Contract : Other External,Properties,Pennine Property Partnership Llp,SINV3170,"48,516.60 ",Service Charge Recharge - November 2022,WA4 6HL
Corporate Services,Service Performance,20/01/2023,Contract : Other External,Properties,Pennine Property Partnership Llp,SINV3177,"48,516.60 ",Service Charge Recharge - December 2022,WA4 6HL
Pmu,Pmu,27/01/2023,Contract : Other External,Pmu,Pilz Ltd,HPS.2022.12,"26,933.40 ",POV03W: 50% share of gross margin Povidone/iodine product (December receipts),S75 3SP
Balance Sheet,L2 Current Assets,20/01/2023,Other Debtors < One Year,Other Debtors,Promed Ltd,19168,"29,625.00 ",3 x LEONARDO® Mini Dual - SL1470+980nm as per quote I - SV18 x Laser safety eyewear - CE Marked Eyewear,PE28 3EB
Medical Division,Emergency Medicine,27/01/2023,B5 Agency Nursing,A&E Nursing,Red Group Personnel Ltd,010123CH,"3,164.06 ",B5 Agency Nursing,HA3 5AB
Corporate Services,Central Operations Team CORP,27/01/2023,B5 Agency Nursing,Central Operations Team CORP,Red Group Personnel Ltd,010123CH,727.03 ,B5 Agency Nursing,HA3 5AB
Medical Division,Medical Specialities,27/01/2023,B5 Agency Nursing,Gastroenterology,Red Group Personnel Ltd,010123CH,758.64 ,B5 Agency Nursing,HA3 5AB
Medical Division,Acute Medical,27/01/2023,B5 Agency Nursing,General Medicine,Red Group Personnel Ltd,010123CH,"8,381.52 ",B5 Agency Nursing,HA3 5AB
Surgery & Anaesthetics,General Surgery,27/01/2023,B5 Agency Nursing,General Surgery,Red Group Personnel Ltd,010123CH,727.03 ,B5 Agency Nursing,HA3 5AB
Medical Division,Acute Medical,27/01/2023,B5 Agency Nursing,Geriatric Medicine,Red Group Personnel Ltd,010123CH,"6,879.02 ",B5 Agency Nursing,HA3 5AB
Medical Division,Integrated Medical Specialities,27/01/2023,B5 Agency Nursing,Ims Stroke / Rehabilitation,Red Group Personnel Ltd,010123CH,"2,598.80 ",B5 Agency Nursing,HA3 5AB
Families & Specialist Services,Childrens,27/01/2023,B5 Agency Nursing,Inpatients Paediatrics,Red Group Personnel Ltd,010123CH,787.58 ,B5 Agency Nursing,HA3 5AB
Surgery & Anaesthetics,Operating Services,27/01/2023,B5 Agency Nursing,Operating Services,Red Group Personnel Ltd,010123CH,939.69 ,B5 Agency Nursing,HA3 5AB
Medical Division,Medical Specialities,27/01/2023,B5 Agency Nursing,Respiratory,Red Group Personnel Ltd,010123CH,"4,019.66 ",B5 Agency Nursing,HA3 5AB
Medical Division,Emergency Medicine,20/01/2023,B5 Agency Nursing,A&E Nursing,Red Group Personnel Ltd,111222CH,819.28,B5 Agency Nursing,HA3 5AB
Surgery & Anaesthetics,Head & Neck,20/01/2023,B5 Agency Nursing,Ent,Red Group Personnel Ltd,111222CH,633.88,B5 Agency Nursing,HA3 5AB
Medical Division,Medical Specialities,20/01/2023,B5 Agency Nursing,Gastroenterology,Red Group Personnel Ltd,111222CH,1117.67,B5 Agency Nursing,HA3 5AB
Medical Division,Acute Medical,20/01/2023,B5 Agency Nursing,General Medicine,Red Group Personnel Ltd,111222CH,8750.86,B5 Agency Nursing,HA3 5AB
Medical Division,Acute Medical,20/01/2023,B5 Agency Nursing,Geriatric Medicine,Red Group Personnel Ltd,111222CH,4032.13,B5 Agency Nursing,HA3 5AB
Medical Division,Integrated Medical Specialities,20/01/2023,B5 Agency Nursing,Ims Stroke / Rehabilitation,Red Group Personnel Ltd,111222CH,1172.47,B5 Agency Nursing,HA3 5AB
Families & Specialist Services,Childrens,20/01/2023,B5 Agency Nursing,Inpatients Paediatrics,Red Group Personnel Ltd,111222CH,2254.72,B5 Agency Nursing,HA3 5AB
Surgery & Anaesthetics,Operating Services,20/01/2023,B5 Agency Nursing,Operating Services,Red Group Personnel Ltd,111222CH,5647.18,B5 Agency Nursing,HA3 5AB
Medical Division,Medical Specialities,20/01/2023,B5 Agency Nursing,Respiratory,Red Group Personnel Ltd,111222CH,1531.48,B5 Agency Nursing,HA3 5AB
Surgery & Anaesthetics,Orthopaedics,20/01/2023,B5 Agency Nursing,Trauma & Orthopaedics,Red Group Personnel Ltd,111222CH,672.98,B5 Agency Nursing,HA3 5AB
Medical Division,Emergency Medicine,13/01/2023,B5 Agency Nursing,A&E Nursing,Red Group Personnel Ltd,181222CH,"1,679.55 ",B5 Agency Nursing,HA3 5AB
Corporate Services,Central Operations Team CORP,13/01/2023,B5 Agency Nursing,Central Operations Team CORP,Red Group Personnel Ltd,181222CH,"1,243.93 ",B5 Agency Nursing,HA3 5AB
Medical Division,Acute Medical,13/01/2023,B5 Agency Nursing,General Medicine,Red Group Personnel Ltd,181222CH,"8,416.94 ",B5 Agency Nursing,HA3 5AB
Medical Division,Acute Medical,13/01/2023,B5 Agency Nursing,Geriatric Medicine,Red Group Personnel Ltd,181222CH,"4,635.07 ",B5 Agency Nursing,HA3 5AB
Medical Division,Integrated Medical Specialities,13/01/2023,B5 Agency Nursing,Ims Stroke / Rehabilitation,Red Group Personnel Ltd,181222CH,"5,315.31 ",B5 Agency Nursing,HA3 5AB
Families & Specialist Services,Childrens,13/01/2023,B5 Agency Nursing,Inpatients Paediatrics,Red Group Personnel Ltd,181222CH,"1,467.10 ",B5 Agency Nursing,HA3 5AB
Surgery & Anaesthetics,Operating Services,13/01/2023,B5 Agency Nursing,Operating Services,Red Group Personnel Ltd,181222CH,"4,974.20 ",B5 Agency Nursing,HA3 5AB
Medical Division,Medical Specialities,13/01/2023,B5 Agency Nursing,Respiratory,Red Group Personnel Ltd,181222CH,574.44 ,B5 Agency Nursing,HA3 5AB
Medical Division,Emergency Medicine,06/01/2023,B5 Agency Nursing,A&E Nursing,Red Group Personnel Ltd,27/11/22CH,"1,711.27 ",B5 Agency Nursing,HA3 5AB
Corporate Services,Central Operations Team CORP,06/01/2023,B5 Agency Nursing,Central Operations Team CORP,Red Group Personnel Ltd,27/11/22CH,"2,523.61 ",B5 Agency Nursing,HA3 5AB
Medical Division,Acute Medical,06/01/2023,B5 Agency Nursing,General Medicine,Red Group Personnel Ltd,27/11/22CH,"5,706.13 ",B5 Agency Nursing,HA3 5AB
Surgery & Anaesthetics,General Surgery,06/01/2023,B5 Agency Nursing,General Surgery,Red Group Personnel Ltd,27/11/22CH,"1,263.79 ",B5 Agency Nursing,HA3 5AB
Medical Division,Acute Medical,06/01/2023,B5 Agency Nursing,Geriatric Medicine,Red Group Personnel Ltd,27/11/22CH,"2,976.11 ",B5 Agency Nursing,HA3 5AB
Medical Division,Integrated Medical Specialities,06/01/2023,B5 Agency Nursing,Ims Stroke / Rehabilitation,Red Group Personnel Ltd,27/11/22CH,"2,919.38 ",B5 Agency Nursing,HA3 5AB
Surgery & Anaesthetics,Operating Services,06/01/2023,B5 Agency Nursing,Operating Services,Red Group Personnel Ltd,27/11/22CH,"6,162.60 ",B5 Agency Nursing,HA3 5AB
Surgery & Anaesthetics,Orthopaedics,06/01/2023,B5 Agency Nursing,Trauma & Orthopaedics,Red Group Personnel Ltd,27/11/22CH,"1,164.15 ",B5 Agency Nursing,HA3 5AB
Families & Specialist Services,Pathology,27/01/2023,Laboratory Bottles And Containers,Path General,Roche Diagnostics Ltd,6571673389,"84,407.70 ",Managed Service Contract for 2022/23 for INR  Glucose  Ketones and molecular POCT for CHFT,RH15 9RY
Families & Specialist Services,Pathology,27/01/2023,Laboratory Test Kits,Cell Path,Roche Diagnostics Ltd,6571673410,"47,830.20 ",Managed Service Contract for 2022/23 for INR  Glucose  Ketones and molecular POCT for CHFT,RH15 9RY
Balance Sheet,L2 Current Assets,27/01/2023,Finished Processed Goods,Stock & Work In Progress,Roche Products Ltd,1322263574,"60,162.96 ",Pharmaceutical Purchase,AL7 1TW
Balance Sheet,L2 Current Assets,27/01/2023,Finished Processed Goods,Stock & Work In Progress,Roche Products Ltd,1322264669,"51,324.72 ",Pharmaceutical Purchase,AL7 1TW
Balance Sheet,L2 Current Assets,27/01/2023,Finished Processed Goods,Stock & Work In Progress,Roche Products Ltd,1322264876,"150,060.92 ",Pharmaceutical Purchase,AL7 1TW
CHS Estates,L2 Estates,11/01/2023,Gas,Estates Operations,SEFE Energy Limited,INV02694717,"154,494.58 ",Mains gas HRI,NW1 3BF
Families & Specialist Services,Pathology,06/01/2023,Laboratory Chemicals,Path Chemical Pathology,Siemens Healthcare Diagnostics Ltd,114906027,"156,629.44 ",Biochemistry Managed Service Contract,GU16 8QD
CHS Balance Sheet,Fixed Assets,20/01/2023,Additions - Assets Under Construction,Tangible,Socamel Uk Ltd,2FU0110,"64,205.00",Ref No 480005 - Multiserv senior oven/fridge (Single phase 32 amp) as per attached quote,SN11 9PT
CHS Balance Sheet,Fixed Assets,20/01/2023,Additions - Assets Under Construction,Tangible,Socamel Uk Ltd,2FU0110,"4,428.00",Ref No 4800011 - top shelf lowered (Sneeze guard + LED lights),SN11 9PT
CHS Balance Sheet,Fixed Assets,20/01/2023,Additions - Assets Under Construction,Tangible,Socamel Uk Ltd,2FU0110,"1,221.50",Ref No 4800034 - Hot/hot countertop F/MS,SN11 9PT
CHS Balance Sheet,Fixed Assets,20/01/2023,Additions - Assets Under Construction,Tangible,Socamel Uk Ltd,2FU0110,622.90,Ref No 48400067 - Detachable food probe F/multiserv V3,SN11 9PT
CHS Facilities,L2 Facilities,20/01/2023,Catering Equipment - Maintenance,Catering,Socamel Uk Ltd,2FU0110,"4,965.80",Ref No 70000014 Year 3 - Extended Warranty/Maintenance.  To be activated at year 3 on Catering maintenance budget. ,SN11 9PT
CHS Facilities,L2 Facilities,20/01/2023,Catering Equipment - Maintenance,Catering,Socamel Uk Ltd,2FU0110,"4,965.80",Ref No 70000014 Year 4 - Extended Warranty/Maintenance.  To be activated at year 4 on Catering maintenance budget. ,SN11 9PT
CHS Facilities,L2 Facilities,20/01/2023,Catering Equipment - Maintenance,Catering,Socamel Uk Ltd,2FU0110,"4,965.80",Ref No 70000014 Year 5 - Extended Warranty/Maintenance.  To be activated at year 5 on Catering maintenance budget. ,SN11 9PT
Balance Sheet,Fixed Assets,27/01/2023,Additions - Assets Under Construction,Capital (His),Softcat Plc,INVUK693936,"62,080.78 ",Lenovo ThinkCentre M70q Gen 3,SL7 1TB
Surgery & Anaesthetics,Surgical Divisional Support,11/01/2023,Contractual Clinical Services,Independent Sector,Spire Healthcare Ltd,RWYELDICF2223M06,"61,270.36 ",Provision of Elective Activity on behalf of CHFT,RG1 9PL
CHS Facilities,L2 Facilities,27/01/2023,External Contracts : Laundry,Laundry,Synergy Health Managed Services Ltd,50001087,"120,398.63 ",LAUNDRY SERVICE CONTRACT,WA9 5XH
Community Division,Community Therapies,27/01/2023,Patients Appliances : Purchase,Patient Appliances,Taycare Medical Ltd,21735,"28,955.48 ",supply of specialist orthotic products,LS12 6LL
Community Division,Community Therapies,27/01/2023,Patients Appliances : Purchase,Patient Appliances,Taycare Medical Ltd,21736,"30,791.59 ",supply of specialist orthotic products,LS12 6LL
Recharges,Recharges,13/01/2023,Healthcare From NHS Trusts,Recharges,The Leeds Teaching Hospitals NHS Trust,1410200599,"263,600.08 ",454400 - 4170 BIOCHEMICAL GENETICS - Specialist Laboratory,LS9 7TF
CHS Facilities,L2 Facilities,06/01/2023,Contract : Premises Security,Security,The Leeds Teaching Hospitals NHS Trust,1410197744,"36,161.22 ",Security Contract,LS9 7TF
CHS Facilities,L2 Facilities,18/01/2023,Contract : Premises Security,Security,The Leeds Teaching Hospitals NHS Trust,1410198588,"36,161.22 ",Security Contract,LS9 7TF
CHS Facilities,L2 Facilities,18/01/2023,Contract : Premises Security,Security,The Leeds Teaching Hospitals NHS Trust,1410200262,"36,161.22 ",Security Contract,LS9 7TF
Balance Sheet,Fixed Assets,11/01/2023,Additions - Assets Under Construction,Capital (Estates),The Together Group Construction Ltd,2916,"137,335.02 ",CHILD DEVELOPMENT UNIT - VARIATION WORKS UNDERTAKEN AS PER YOUR REVISED QUOTE INCLUDES ASBESTOS REMOVAL  FIRE COMPARTMENTATION  ACCESS CONTROL DATED 01/12/22 ,LS22 5DZ
Balance Sheet,L2 Current Assets,27/01/2023,Other Debtors < One Year,Other Debtors,Tuskerdirect Ltd,68750,"127,657.92 ",Salary Sacrifice cars,WD18 8YF
Corporate Services,Finance,11/01/2023,Audit Fees : Internal,Finance,York and Scarborough Teaching Hospitals NHS Foundation Trust,1010084377,"37,296.00 ",2022/23 INTERNAL AUDIT CHARGES INCLUDES COUNTER FRAUD DAYS,YO30 4RY
Corporate Services,Finance,06/01/2023,Audit Fees : Internal,Finance,York and Scarborough Teaching Hospitals NHS Foundation Trust,1010087311,"37,714.00 ",2022/23 INTERNAL AUDIT CHARGES INCLUDES COUNTER FRAUD DAYS,YO30 4RY
Medical Division,Emergency Medicine,20/01/2023,B5 Agency Nursing,A&E Nursing,Your Nurse Ltd,EHCX30,663.00 ,B5 Agency Nursing,EC3V 0EH
Corporate Services,Central Operations Team CORP,20/01/2023,B5 Agency Nursing,Central Operations Team CORP,Your Nurse Ltd,EHCX30,"5,630.00 ",B5 Agency Nursing,EC3V 0EH
Surgery & Anaesthetics,Critical Care,20/01/2023,B5 Agency Nursing,Critical Care,Your Nurse Ltd,EHCX30,"1,442.00 ",B5 Agency Nursing,EC3V 0EH
Medical Division,Medical Specialities,20/01/2023,B5 Agency Nursing,Gastroenterology,Your Nurse Ltd,EHCX30,595.00 ,B5 Agency Nursing,EC3V 0EH
Medical Division,Acute Medical,20/01/2023,B5 Agency Nursing,General Medicine,Your Nurse Ltd,EHCX30,"4,095.00 ",B5 Agency Nursing,EC3V 0EH
Surgery & Anaesthetics,General Surgery,20/01/2023,B5 Agency Nursing,General Surgery,Your Nurse Ltd,EHCX30,"1,240.00 ",B5 Agency Nursing,EC3V 0EH
Medical Division,Acute Medical,20/01/2023,B5 Agency Nursing,Geriatric Medicine,Your Nurse Ltd,EHCX30,"4,972.50 ",B5 Agency Nursing,EC3V 0EH
Families & Specialist Services,Womens,20/01/2023,B5 Agency Nursing,Gynaecology,Your Nurse Ltd,EHCX30,736.00 ,B5 Agency Nursing,EC3V 0EH
Medical Division,Medical Specialities,20/01/2023,B5 Agency Nursing,Respiratory,Your Nurse Ltd,EHCX30,"1,257.50 ",B5 Agency Nursing,EC3V 0EH
Surgery & Anaesthetics,Orthopaedics,20/01/2023,B5 Agency Nursing,Trauma & Orthopaedics,Your Nurse Ltd,EHCX30,650.00 ,B5 Agency Nursing,EC3V 0EH
Medical Division,Emergency Medicine,20/01/2023,B5 Agency Nursing,A&E Nursing,Your Nurse Ltd,EHCX31,"2,009.00 ",B5 Agency Nursing,EC3V 0EH
Medical Division,Medical Specialities,20/01/2023,B5 Agency Nursing,Cardiology,Your Nurse Ltd,EHCX31,"2,572.50 ",B5 Agency Nursing,EC3V 0EH
Corporate Services,Central Operations Team CORP,20/01/2023,B5 Agency Nursing,Central Operations Team CORP,Your Nurse Ltd,EHCX31,"2,265.00 ",B5 Agency Nursing,EC3V 0EH
Surgery & Anaesthetics,Critical Care,20/01/2023,B5 Agency Nursing,Critical Care,Your Nurse Ltd,EHCX31,721.00 ,B5 Agency Nursing,EC3V 0EH
Medical Division,Medical Specialities,20/01/2023,B5 Agency Nursing,Gastroenterology,Your Nurse Ltd,EHCX31,620.00 ,B5 Agency Nursing,EC3V 0EH
Medical Division,Acute Medical,20/01/2023,B5 Agency Nursing,General Medicine,Your Nurse Ltd,EHCX31,"4,897.50 ",B5 Agency Nursing,EC3V 0EH
Surgery & Anaesthetics,General Surgery,20/01/2023,B5 Agency Nursing,General Surgery,Your Nurse Ltd,EHCX31,950.00 ,B5 Agency Nursing,EC3V 0EH
Medical Division,Acute Medical,20/01/2023,B5 Agency Nursing,Geriatric Medicine,Your Nurse Ltd,EHCX31,"8,872.50 ",B5 Agency Nursing,EC3V 0EH
Medical Division,Medical Specialities,20/01/2023,B5 Agency Nursing,Respiratory,Your Nurse Ltd,EHCX31,"1,215.00 ",B5 Agency Nursing,EC3V 0EH
Surgery & Anaesthetics,Orthopaedics,20/01/2023,B5 Agency Nursing,Trauma & Orthopaedics,Your Nurse Ltd,EHCX31,"1,770.00 ",B5 Agency Nursing,EC3V 0EH
Medical Division,Emergency Medicine,13/01/2023,B5 Agency Nursing,A&E Nursing,Your Nurse Ltd,EHCX32,"3,719.00 ",B5 Agency Nursing,EC3V 0EH
Corporate Services,Central Operations Team CORP,13/01/2023,B5 Agency Nursing,Central Operations Team CORP,Your Nurse Ltd,EHCX32,"2,810.00 ",B5 Agency Nursing,EC3V 0EH
Surgery & Anaesthetics,Critical Care,13/01/2023,B5 Agency Nursing,Critical Care,Your Nurse Ltd,EHCX32,"2,163.00 ",B5 Agency Nursing,EC3V 0EH
Medical Division,Medical Specialities,13/01/2023,B5 Agency Nursing,Gastroenterology,Your Nurse Ltd,EHCX32,"2,230.00 ",B5 Agency Nursing,EC3V 0EH
Medical Division,Acute Medical,13/01/2023,B5 Agency Nursing,General Medicine,Your Nurse Ltd,EHCX32,"1,240.00 ",B5 Agency Nursing,EC3V 0EH
Surgery & Anaesthetics,General Surgery,13/01/2023,B5 Agency Nursing,General Surgery,Your Nurse Ltd,EHCX32,"2,590.17 ",B5 Agency Nursing,EC3V 0EH
Medical Division,Acute Medical,13/01/2023,B5 Agency Nursing,Geriatric Medicine,Your Nurse Ltd,EHCX32,"6,889.50 ",B5 Agency Nursing,EC3V 0EH
Medical Division,Integrated Medical Specialities,13/01/2023,B5 Agency Nursing,Ims Stroke / Rehabilitation,Your Nurse Ltd,EHCX32,"1,792.50 ",B5 Agency Nursing,EC3V 0EH
Medical Division,Medical Specialities,13/01/2023,B5 Agency Nursing,Respiratory,Your Nurse Ltd,EHCX32,"1,810.00 ",B5 Agency Nursing,EC3V 0EH
Surgery & Anaesthetics,Orthopaedics,13/01/2023,B5 Agency Nursing,Trauma & Orthopaedics,Your Nurse Ltd,EHCX32,"1,885.00 ",B5 Agency Nursing,EC3V 0EH
Medical Division,Emergency Medicine,13/01/2023,B5 Agency Nursing,A&E Nursing,Your Nurse Ltd,EHCX33,"5,915.50 ",B5 Agency Nursing,EC3V 0EH
Corporate Services,Central Operations Team CORP,13/01/2023,B5 Agency Nursing,Central Operations Team CORP,Your Nurse Ltd,EHCX33,"5,027.50 ",B5 Agency Nursing,EC3V 0EH
Surgery & Anaesthetics,Critical Care,13/01/2023,B5 Agency Nursing,Critical Care,Your Nurse Ltd,EHCX33,"3,672.00 ",B5 Agency Nursing,EC3V 0EH
Medical Division,Acute Medical,13/01/2023,B5 Agency Nursing,General Medicine,Your Nurse Ltd,EHCX33,"1,915.00 ",B5 Agency Nursing,EC3V 0EH
Medical Division,Acute Medical,13/01/2023,B5 Agency Nursing,Geriatric Medicine,Your Nurse Ltd,EHCX33,"5,800.83 ",B5 Agency Nursing,EC3V 0EH
Families & Specialist Services,Womens,13/01/2023,B5 Agency Nursing,Gynaecology,Your Nurse Ltd,EHCX33,721.00 ,B5 Agency Nursing,EC3V 0EH
Medical Division,Integrated Medical Specialities,13/01/2023,B5 Agency Nursing,Ims Stroke / Rehabilitation,Your Nurse Ltd,EHCX33,"1,190.00 ",B5 Agency Nursing,EC3V 0EH
Surgery & Anaesthetics,Orthopaedics,13/01/2023,B5 Agency Nursing,Trauma & Orthopaedics,Your Nurse Ltd,EHCX33,"1,760.00 ",B5 Agency Nursing,EC3V 0EH
Medical Division,Emergency Medicine,20/01/2023,B5 Agency Nursing,A&E Nursing,Your Nurse Ltd,EHCX34,"4,085.00 ",B5 Agency Nursing,EC3V 0EH
Corporate Services,Central Operations Team CORP,20/01/2023,B5 Agency Nursing,Central Operations Team CORP,Your Nurse Ltd,EHCX34,"1,800.00 ",B5 Agency Nursing,EC3V 0EH
Surgery & Anaesthetics,Critical Care,20/01/2023,B5 Agency Nursing,Critical Care,Your Nurse Ltd,EHCX34,"2,893.00 ",B5 Agency Nursing,EC3V 0EH
Medical Division,Medical Specialities,20/01/2023,B5 Agency Nursing,Gastroenterology,Your Nurse Ltd,EHCX34,"3,595.00 ",B5 Agency Nursing,EC3V 0EH
Medical Division,Acute Medical,20/01/2023,B5 Agency Nursing,General Medicine,Your Nurse Ltd,EHCX34,"3,781.67 ",B5 Agency Nursing,EC3V 0EH
Surgery & Anaesthetics,General Surgery,20/01/2023,B5 Agency Nursing,General Surgery,Your Nurse Ltd,EHCX34,"1,195.00 ",B5 Agency Nursing,EC3V 0EH
Medical Division,Acute Medical,20/01/2023,B5 Agency Nursing,Geriatric Medicine,Your Nurse Ltd,EHCX34,"1,922.50 ",B5 Agency Nursing,EC3V 0EH
Medical Division,Integrated Medical Specialities,20/01/2023,B5 Agency Nursing,Ims Stroke / Rehabilitation,Your Nurse Ltd,EHCX34,"1,190.00 ",B5 Agency Nursing,EC3V 0EH
Medical Division,Integrated Medical Specialities,20/01/2023,B5 Agency Nursing,Medical Oncology,Your Nurse Ltd,EHCX34,"1,200.00 ",B5 Agency Nursing,EC3V 0EH
Surgery & Anaesthetics,Orthopaedics,20/01/2023,B5 Agency Nursing,Trauma & Orthopaedics,Your Nurse Ltd,EHCX34,575.00 ,B5 Agency Nursing,EC3V 0EH
Medical Division,Emergency Medicine,27/01/2023,B5 Agency Nursing,A&E Nursing,Your Nurse Ltd,YNLX54,"18,394.47 ",B5 Agency Nursing,EC3V 0EH
Medical Division,Medical Specialities,27/01/2023,B5 Agency Nursing,Cardiology,Your Nurse Ltd,YNLX54,"4,103.91 ",B5 Agency Nursing,EC3V 0EH
Corporate Services,Central Operations Team CORP,27/01/2023,B5 Agency Nursing,Central Operations Team CORP,Your Nurse Ltd,YNLX54,"11,648.42 ",B5 Agency Nursing,EC3V 0EH
Surgery & Anaesthetics,Critical Care,27/01/2023,B5 Agency Nursing,Critical Care,Your Nurse Ltd,YNLX54,"2,145.88 ",B5 Agency Nursing,EC3V 0EH
Surgery & Anaesthetics,Head & Neck,27/01/2023,B5 Agency Nursing,Ent,Your Nurse Ltd,YNLX54,637.90 ,B5 Agency Nursing,EC3V 0EH
Medical Division,Medical Specialities,27/01/2023,B5 Agency Nursing,Gastroenterology,Your Nurse Ltd,YNLX54,"10,899.95 ",B5 Agency Nursing,EC3V 0EH
Medical Division,Acute Medical,27/01/2023,B5 Agency Nursing,General Medicine,Your Nurse Ltd,YNLX54,"17,791.58 ",B5 Agency Nursing,EC3V 0EH
Surgery & Anaesthetics,General Surgery,27/01/2023,B5 Agency Nursing,General Surgery,Your Nurse Ltd,YNLX54,"17,736.17 ",B5 Agency Nursing,EC3V 0EH
Medical Division,Acute Medical,27/01/2023,B5 Agency Nursing,Geriatric Medicine,Your Nurse Ltd,YNLX54,"15,346.31 ",B5 Agency Nursing,EC3V 0EH
Families & Specialist Services,Womens,27/01/2023,B5 Agency Nursing,Gynaecology,Your Nurse Ltd,YNLX54,749.32 ,B5 Agency Nursing,EC3V 0EH
Medical Division,Integrated Medical Specialities,27/01/2023,B5 Agency Nursing,Ims Stroke / Rehabilitation,Your Nurse Ltd,YNLX54,"3,060.51 ",B5 Agency Nursing,EC3V 0EH
Families & Specialist Services,Childrens,27/01/2023,B5 Agency Nursing,Inpatients Paediatrics,Your Nurse Ltd,YNLX54,"1,412.38 ",B5 Agency Nursing,EC3V 0EH
Medical Division,Integrated Medical Specialities,27/01/2023,B5 Agency Nursing,Medical Oncology,Your Nurse Ltd,YNLX54,"5,930.03 ",B5 Agency Nursing,EC3V 0EH
Surgery & Anaesthetics,Operating Services,27/01/2023,B5 Agency Nursing,Operating Services,Your Nurse Ltd,YNLX54,"12,749.00 ",B5 Agency Nursing,EC3V 0EH
Medical Division,Medical Specialities,27/01/2023,B5 Agency Nursing,Respiratory,Your Nurse Ltd,YNLX54,"4,699.73 ",B5 Agency Nursing,EC3V 0EH
Surgery & Anaesthetics,Orthopaedics,27/01/2023,B5 Agency Nursing,Trauma & Orthopaedics,Your Nurse Ltd,YNLX54,"8,477.16 ",B5 Agency Nursing,EC3V 0EH
Medical Division,Emergency Medicine,27/01/2023,B5 Agency Nursing,A&E Nursing,Your Nurse Ltd,YNLX55,"23,313.24 ",B5 Agency Nursing,EC3V 0EH
Medical Division,Medical Specialities,27/01/2023,B5 Agency Nursing,Cardiology,Your Nurse Ltd,YNLX55,477.60 ,B5 Agency Nursing,EC3V 0EH
Corporate Services,Central Operations Team CORP,27/01/2023,B5 Agency Nursing,Central Operations Team CORP,Your Nurse Ltd,YNLX55,"10,821.06 ",B5 Agency Nursing,EC3V 0EH
Surgery & Anaesthetics,Critical Care,27/01/2023,B5 Agency Nursing,Critical Care,Your Nurse Ltd,YNLX55,"7,178.73 ",B5 Agency Nursing,EC3V 0EH
Surgery & Anaesthetics,Head & Neck,27/01/2023,B5 Agency Nursing,Ent,Your Nurse Ltd,YNLX55,655.10 ,B5 Agency Nursing,EC3V 0EH
Medical Division,Medical Specialities,27/01/2023,B5 Agency Nursing,Gastroenterology,Your Nurse Ltd,YNLX55,"4,359.70 ",B5 Agency Nursing,EC3V 0EH
Medical Division,Acute Medical,27/01/2023,B5 Agency Nursing,General Medicine,Your Nurse Ltd,YNLX55,"14,243.28 ",B5 Agency Nursing,EC3V 0EH
Surgery & Anaesthetics,General Surgery,27/01/2023,B5 Agency Nursing,General Surgery,Your Nurse Ltd,YNLX55,"14,839.69 ",B5 Agency Nursing,EC3V 0EH
Medical Division,Acute Medical,27/01/2023,B5 Agency Nursing,Geriatric Medicine,Your Nurse Ltd,YNLX55,"16,051.32 ",B5 Agency Nursing,EC3V 0EH
Medical Division,Integrated Medical Specialities,27/01/2023,B5 Agency Nursing,Ims Stroke / Rehabilitation,Your Nurse Ltd,YNLX55,"5,819.55 ",B5 Agency Nursing,EC3V 0EH
Families & Specialist Services,Childrens,27/01/2023,B5 Agency Nursing,Inpatients Paediatrics,Your Nurse Ltd,YNLX55,"6,444.32 ",B5 Agency Nursing,EC3V 0EH
Medical Division,Integrated Medical Specialities,27/01/2023,B5 Agency Nursing,Medical Oncology,Your Nurse Ltd,YNLX55,"2,342.72 ",B5 Agency Nursing,EC3V 0EH
Surgery & Anaesthetics,Operating Services,27/01/2023,B5 Agency Nursing,Operating Services,Your Nurse Ltd,YNLX55,"7,194.89 ",B5 Agency Nursing,EC3V 0EH
Medical Division,Medical Specialities,27/01/2023,B5 Agency Nursing,Respiratory,Your Nurse Ltd,YNLX55,"10,115.85 ",B5 Agency Nursing,EC3V 0EH
Surgery & Anaesthetics,Orthopaedics,27/01/2023,B5 Agency Nursing,Trauma & Orthopaedics,Your Nurse Ltd,YNLX55,"6,333.96 ",B5 Agency Nursing,EC3V 0EH
Medical Division,Emergency Medicine,27/01/2023,B5 Agency Nursing,A&E Nursing,Your Nurse Ltd,YNLX56,"18,665.72 ",B5 Agency Nursing,EC3V 0EH
Medical Division,Medical Specialities,27/01/2023,B5 Agency Nursing,Cardiology,Your Nurse Ltd,YNLX56,"4,457.67 ",B5 Agency Nursing,EC3V 0EH
Corporate Services,Central Operations Team CORP,27/01/2023,B5 Agency Nursing,Central Operations Team CORP,Your Nurse Ltd,YNLX56,"12,613.44 ",B5 Agency Nursing,EC3V 0EH
Surgery & Anaesthetics,Critical Care,27/01/2023,B5 Agency Nursing,Critical Care,Your Nurse Ltd,YNLX56,"3,583.62 ",B5 Agency Nursing,EC3V 0EH
Medical Division,Medical Specialities,27/01/2023,B5 Agency Nursing,Gastroenterology,Your Nurse Ltd,YNLX56,"4,127.03 ",B5 Agency Nursing,EC3V 0EH
Medical Division,Acute Medical,27/01/2023,B5 Agency Nursing,General Medicine,Your Nurse Ltd,YNLX56,"12,664.60 ",B5 Agency Nursing,EC3V 0EH
Surgery & Anaesthetics,General Surgery,27/01/2023,B5 Agency Nursing,General Surgery,Your Nurse Ltd,YNLX56,"12,183.15 ",B5 Agency Nursing,EC3V 0EH
Medical Division,Acute Medical,27/01/2023,B5 Agency Nursing,Geriatric Medicine,Your Nurse Ltd,YNLX56,"15,434.47 ",B5 Agency Nursing,EC3V 0EH
Families & Specialist Services,Womens,27/01/2023,B5 Agency Nursing,Gynaecology,Your Nurse Ltd,YNLX56,706.19 ,B5 Agency Nursing,EC3V 0EH
Medical Division,Integrated Medical Specialities,27/01/2023,B5 Agency Nursing,Ims Stroke / Rehabilitation,Your Nurse Ltd,YNLX56,"6,433.76 ",B5 Agency Nursing,EC3V 0EH
Families & Specialist Services,Childrens,27/01/2023,B5 Agency Nursing,Inpatients Paediatrics,Your Nurse Ltd,YNLX56,"1,412.38 ",B5 Agency Nursing,EC3V 0EH
Medical Division,Integrated Medical Specialities,27/01/2023,B5 Agency Nursing,Medical Oncology,Your Nurse Ltd,YNLX56,"3,034.38 ",B5 Agency Nursing,EC3V 0EH
Surgery & Anaesthetics,Operating Services,27/01/2023,B5 Agency Nursing,Operating Services,Your Nurse Ltd,YNLX56,"14,099.25 ",B5 Agency Nursing,EC3V 0EH
Medical Division,Medical Specialities,27/01/2023,B5 Agency Nursing,Respiratory,Your Nurse Ltd,YNLX56,"7,554.03 ",B5 Agency Nursing,EC3V 0EH
Surgery & Anaesthetics,Orthopaedics,27/01/2023,B5 Agency Nursing,Trauma & Orthopaedics,Your Nurse Ltd,YNLX56,"5,492.46 ",B5 Agency Nursing,EC3V 0EH
Medical Division,Emergency Medicine,27/01/2023,B5 Agency Nursing,A&E Nursing,Your Nurse Ltd,YNLX57,"11,942.61 ",B5 Agency Nursing,EC3V 0EH
Medical Division,Medical Specialities,27/01/2023,B5 Agency Nursing,Cardiology,Your Nurse Ltd,YNLX57,"4,075.78 ",B5 Agency Nursing,EC3V 0EH
Corporate Services,Central Operations Team CORP,27/01/2023,B5 Agency Nursing,Central Operations Team CORP,Your Nurse Ltd,YNLX57,"10,070.68 ",B5 Agency Nursing,EC3V 0EH
Surgery & Anaesthetics,Critical Care,27/01/2023,B5 Agency Nursing,Critical Care,Your Nurse Ltd,YNLX57,"2,109.16 ",B5 Agency Nursing,EC3V 0EH
Medical Division,Medical Specialities,27/01/2023,B5 Agency Nursing,Gastroenterology,Your Nurse Ltd,YNLX57,"6,906.66 ",B5 Agency Nursing,EC3V 0EH
Medical Division,Acute Medical,27/01/2023,B5 Agency Nursing,General Medicine,Your Nurse Ltd,YNLX57,"12,875.69 ",B5 Agency Nursing,EC3V 0EH
Surgery & Anaesthetics,General Surgery,27/01/2023,B5 Agency Nursing,General Surgery,Your Nurse Ltd,YNLX57,"9,237.47 ",B5 Agency Nursing,EC3V 0EH
Medical Division,Acute Medical,27/01/2023,B5 Agency Nursing,Geriatric Medicine,Your Nurse Ltd,YNLX57,"6,496.60 ",B5 Agency Nursing,EC3V 0EH
Medical Division,Integrated Medical Specialities,27/01/2023,B5 Agency Nursing,Ims Stroke / Rehabilitation,Your Nurse Ltd,YNLX57,"10,702.11 ",B5 Agency Nursing,EC3V 0EH
Families & Specialist Services,Childrens,27/01/2023,B5 Agency Nursing,Inpatients Paediatrics,Your Nurse Ltd,YNLX57,"3,657.24 ",B5 Agency Nursing,EC3V 0EH
Medical Division,Integrated Medical Specialities,27/01/2023,B5 Agency Nursing,Medical Oncology,Your Nurse Ltd,YNLX57,"2,319.59 ",B5 Agency Nursing,EC3V 0EH
Surgery & Anaesthetics,Operating Services,27/01/2023,B5 Agency Nursing,Operating Services,Your Nurse Ltd,YNLX57,"15,596.65 ",B5 Agency Nursing,EC3V 0EH
Medical Division,Medical Specialities,27/01/2023,B5 Agency Nursing,Respiratory,Your Nurse Ltd,YNLX57,"9,296.84 ",B5 Agency Nursing,EC3V 0EH
Surgery & Anaesthetics,Orthopaedics,27/01/2023,B5 Agency Nursing,Trauma & Orthopaedics,Your Nurse Ltd,YNLX57,"4,578.39 ",B5 Agency Nursing,EC3V 0EH
